fUSD/lending_fUSD_20260512
["ID","MTS","AMOUNT","RATE_DAILY","PERIOD"]
[422122689,1778587833000,-500.0,0.00014972,2]
[422122700,1778587833000,-275.1905511,0.00014972,2]
[422122688,1778587833000,-500.0,0.00014972,2]
[422122664,1778587833000,-581.63023764,0.00014888,2]
[422122685,1778587833000,-500.0,0.00014972,2]
[422122712,1778587833000,-500.0,0.00014972,2]
[422122674,1778587833000,-387.97475962,0.00014919,2]
[422122663,1778587833000,-581.63023764,0.00014885,2]
[422122665,1778587833000,-581.63023764,0.00014891,2]
[422122666,1778587833000,-581.63023764,0.00014894,2]
[422122667,1778587833000,-581.63023764,0.00014897,2]
[422122673,1778587833000,-163.87,0.00014917,2]
[422122672,1778587833000,-292.34716258,0.000149,2]
[422122671,1778587833000,-197.05501726,0.000149,2]
[422122669,1778587833000,-581.63023764,0.000149,2]
[422122668,1778587833000,-2000.0,0.00014899,2]
[422122670,1778587833000,-212.74478294,0.000149,2]
[422122675,1778587833000,-500.0,0.00014972,2]
[422122676,1778587833000,-508.28029374,0.00014972,2]
[422122687,1778587833000,-500.0,0.00014972,2]
[422122686,1778587833000,-500.0,0.00014972,2]
[422122677,1778587833000,-500.0,0.00014972,2]
[422122679,1778587833000,-500.0,0.00014972,2]
[422122682,1778587833000,-500.0,0.00014972,2]
[422122683,1778587833000,-500.0,0.00014972,2]
[422122680,1778587833000,-500.0,0.00014972,2]
[422122681,1778587833000,-500.0,0.00014972,2]
[422122678,1778587833000,-500.0,0.00014972,2]
[422122684,1778587833000,-500.0,0.00014972,2]
[422122713,1778587833000,-500.0,0.00014972,2]
[422122728,1778587833000,-500.0,0.00014972,2]
[422122723,1778587833000,-500.0,0.00014972,2]
[422122739,1778587833000,-392.640008,0.00014973,2]
[422122714,1778587833000,-500.0,0.00014972,2]
[422122745,1778587833000,-185.305765,0.00014973,2]
[422122743,1778587833000,-151.0,0.00014973,2]
[422122746,1778587833000,-166.6103,0.00014973,2]
[422122742,1778587833000,-151.0,0.00014973,2]
[422122750,1778587833000,-151.0,0.00014973,2]
[422122760,1778587833000,-24121.06047171,0.00015,2]
[422122752,1778587833000,-292.40813059,0.00014986,2]
[422122749,1778587833000,-166.6103,0.00014973,2]
[422122756,1778587833000,-1631.0,0.00015,5]
[422122754,1778587833000,-500.0,0.00014999,2]
[422122755,1778587833000,-500.0,0.00014999,2]
[422122757,1778587833000,-323865.02668874,0.00015,2]
[422122759,1778587833000,-10357.99888973,0.00015,2]
[422122753,1778587833000,-150.0,0.00014986,2]
[422122751,1778587833000,-150.0,0.00014986,2]
[422122758,1778587833000,-589524.94648595,0.00015,2]
[422122762,1778587833000,-3709.50365259,0.00015,2]
[422122761,1778587833000,-102428.90460609,0.00015,2]
[422122763,1778587833000,-40012.36361792,0.00015,2]
[422122764,1778587833000,-443.39958113,0.00015,2]
[422122766,1778587833000,-651.4767907,0.00015,2]
[422122748,1778587833000,-166.6103,0.00014973,2]
[422122747,1778587833000,-166.6103,0.00014973,2]
[422122740,1778587833000,-151.0,0.00014973,2]
[422122741,1778587833000,-151.0,0.00014973,2]
[422122719,1778587833000,-500.0,0.00014972,2]
[422122718,1778587833000,-500.0,0.00014972,2]
[422122716,1778587833000,-500.0,0.00014972,2]
[422122721,1778587833000,-500.0,0.00014972,2]
[422122722,1778587833000,-500.0,0.00014972,2]
[422122715,1778587833000,-500.0,0.00014972,2]
[422122717,1778587833000,-556.92584396,0.00014972,2]
[422122720,1778587833000,-589.50774344,0.00014972,2]
[422122738,1778587833000,-392.640008,0.00014973,2]
[422122724,1778587833000,-500.0,0.00014972,2]
[422122725,1778587833000,-500.0,0.00014972,2]
[422122735,1778587833000,-305.539262,0.00014973,2]
[422122732,1778587833000,-359.42643492,0.00014972,2]
[422122744,1778587833000,-151.0,0.00014973,2]
[422122765,1778587833000,-1108.61757386,0.00015,2]
[422122736,1778587833000,-392.640008,0.00014973,2]
[422122734,1778587833000,-124916.3859219,0.00014973,2]
[422122726,1778587833000,-500.0,0.00014972,2]
[422122737,1778587833000,-392.640008,0.00014973,2]
[422122733,1778587833000,-361707.9954289,0.00014973,2]
[422122727,1778587833000,-500.0,0.00014972,2]
[422122731,1778587833000,-500.0,0.00014972,2]
[422122729,1778587833000,-500.0,0.00014972,2]
[422122730,1778587833000,-500.0,0.00014972,2]
[422122776,1778587838000,-508.40358673,0.00015,2]
[422122774,1778587838000,-642.62509455,0.00015,2]
[422122775,1778587838000,-27055.09977875,0.00015,2]
[422122773,1778587838000,-3374.24446509,0.00015,2]
[422122772,1778587838000,-850.11406423,0.00015,2]
[422122771,1778587838000,-151.0,0.00014973,2]
[422122812,1778587840000,-6746.22981931,0.00015,2]
[422122814,1778587840000,-12955.40241671,0.00015,2]
[422122813,1778587840000,-887.35586409,0.00015,2]
[422122815,1778587840000,-2455.64663095,0.00015,2]
[422122846,1778587843000,-345.27881194,0.00015,2]
[422122845,1778587843000,-1785.21165455,0.00015,2]
[422122844,1778587843000,-32.76401581,0.00015,2]
[422122842,1778587843000,-1933.217562,0.00014925,2]
[422122843,1778587843000,-231691.40256912,0.00015,2]
[422122850,1778587846000,-3228.87970239,0.00015,2]
[422122849,1778587846000,-3893.585,0.00015,2]
[422122848,1778587846000,-56643.60110699,0.00015,2]
[422122857,1778587901000,299.0,0.00027397,120]
[422122858,1778587963000,203.1,0.00026002,120]
[422122863,1778588497000,165.52,8.118e-05,2]
[422122862,1778588497000,165.52,7.745e-05,2]
[422122861,1778588497000,165.52,7.373e-05,2]
[422122864,1778588498000,165.52,8.491e-05,2]
[422122866,1778588498000,165.52,9.237e-05,2]
[422122865,1778588498000,165.52,8.864e-05,2]
[422122871,1778588964000,-78.7563469,0.00010355,2]
[422122870,1778588964000,-165.52,9.982e-05,2]
[422122868,1778588964000,-165.52,9.61e-05,2]
[422122869,1778588964000,-645.8340207,9.982e-05,2]
[422122896,1778589032000,-1200.0,0.00013318,2]
[422122897,1778589032000,-300.0,0.00013319,2]
[422122895,1778589032000,-1549.96234333,0.0001325,2]
[422122898,1778589032000,-300.0,0.00013319,2]
[422122893,1778589032000,-153.01933389,0.00013244,2]
[422122891,1778589032000,-396.79,0.00013182,2]
[422122894,1778589032000,-189.84765667,0.0001325,2]
[422122909,1778589032000,-150.0,0.00014041,2]
[422122912,1778589032000,-396.79,0.00014171,2]
[422122907,1778589032000,-166.66,0.0001387,2]
[422122904,1778589032000,-166.66,0.00013699,2]
[422122908,1778589032000,-250.0,0.00014,2]
[422122903,1778589032000,-396.79,0.00013512,2]
[422122905,1778589032000,-165.52,0.00013711,2]
[422122892,1778589032000,-25.32066611,0.00013244,2]
[422122902,1778589032000,-178.0382564,0.00013488,2]
[422122900,1778589032000,-165.52,0.00013338,2]
[422122884,1778589032000,-204.91512717,0.00012492,2]
[422122889,1778589032000,-165.52,0.00012965,2]
[422122875,1778589032000,-86.7636531,0.00010355,2]
[422122876,1778589032000,-250.0,0.00010571,2]
[422122877,1778589032000,-70.2363469,0.00010728,2]
[422122879,1778589032000,-165.52,0.00011101,2]
[422122880,1778589032000,-165.52,0.00011474,2]
[422122878,1778589032000,-95.2836531,0.00010728,2]
[422122899,1778589032000,-17004.31,0.0001332,2]
[422122887,1778589032000,-116.49479959,0.00012871,2]
[422122881,1778589032000,-165.52,0.00011847,2]
[422122883,1778589032000,-165.52,0.00012219,2]
[422122885,1778589032000,-165.52,0.00012592,2]
[422122886,1778589032000,-150.0,0.0001287,2]
[422122890,1778589032000,-167.27,0.00013106,2]
[422122888,1778589032000,-893.93520041,0.00012871,2]
[422122882,1778589032000,-163.34,0.00011847,2]
[422122910,1778589032000,-166.66,0.00014041,2]
[422122901,1778589032000,-285.29297398,0.00013488,2]
[422122944,1778589032000,-14608.95350553,0.00014997,2]
[422122939,1778589032000,-267.98489904,0.000149,2]
[422122937,1778589032000,-169.17330692,0.000149,2]
[422122933,1778589032000,-1883.86731913,0.00014899,2]
[422122935,1778589032000,-1883.86731913,0.000149,2]
[422122936,1778589032000,-23143.34512252,0.000149,2]
[422122934,1778589032000,-1883.86731913,0.000149,2]
[422122938,1778589032000,-353.05690592,0.000149,2]
[422122940,1778589032000,-500.0,0.000149,2]
[422122943,1778589032000,-500.0,0.00014986,2]
[422122942,1778589032000,-190.96,0.00014985,2]
[422122945,1778589032000,-1627.3273407,0.00014997,2]
[422122941,1778589032000,-1739.81,0.00014906,2]
[422122946,1778589032000,-614.38785408,0.00014997,2]
[422122948,1778589032000,-457.24022354,0.00014997,2]
[422122947,1778589032000,-258.87161287,0.00014997,2]
[422122928,1778589032000,-1883.86731913,0.00014898,2]
[422122932,1778589032000,-1883.86731913,0.00014899,2]
[422122911,1778589032000,-165.52,0.00014083,2]
[422122930,1778589032000,-1883.86731913,0.00014898,2]
[422122913,1778589032000,-166.66,0.00014212,2]
[422122915,1778589032000,-165.52,0.00014456,2]
[422122916,1778589032000,-396.79,0.00014501,2]
[422122919,1778589032000,-370.71773,0.0001485,2]
[422122917,1778589032000,-167.27,0.00014744,2]
[422122914,1778589032000,-166.66,0.00014384,2]
[422122906,1778589032000,-396.79,0.00013841,2]
[422122918,1778589032000,-370.71773,0.0001485,2]
[422122920,1778589032000,-370.71773,0.0001485,2]
[422122922,1778589032000,-370.71773,0.0001485,2]
[422122923,1778589032000,-370.71774,0.0001485,2]
[422122924,1778589032000,-12424.99460149,0.0001489,2]
[422122927,1778589032000,-1883.86731913,0.00014897,2]
[422122925,1778589032000,-1883.86731917,0.00014897,2]
[422122929,1778589032000,-1883.86731913,0.00014898,2]
[422122931,1778589032000,-1883.86731913,0.00014899,2]
[422122951,1778589038000,-27055.09977875,0.00014997,2]
[422123004,1778589040000,-400.765,0.00014997,2]
[422123006,1778589040000,-6478.86472451,0.00014997,2]
[422123005,1778589040000,-629.32239972,0.00014997,2]
[422123022,1778589043000,-562.39994,0.00014997,2]
[422123023,1778589043000,-345.0,0.00014997,2]
[422123021,1778589043000,-293.01107717,0.00014997,2]
[422123028,1778589046000,-7602.21048201,0.00014997,2]
[422123029,1778589046000,-7360.06539794,0.00014997,2]
[422123030,1778589046000,-4039.89982014,0.00014997,2]
[422123074,1778589192000,246.70406,0.0002254,120]
[422123076,1778589212000,152.0,0.00026059,120]
[422123077,1778589261000,166.69268834,0.00012288,30]
[422123081,1778589460000,153.42,7.822e-05,2]
[422123080,1778589460000,153.42,7.378e-05,2]
[422123079,1778589460000,153.42,6.934e-05,2]
[422123083,1778589461000,153.42,8.71e-05,2]
[422123082,1778589461000,153.42,8.266e-05,2]
[422123087,1778589959000,152.0,0.00012288,30]
[422123088,1778589960000,152.0,0.00012288,30]
[422123089,1778589961000,152.0,0.00026084,120]
[422123090,1778589980000,152.0,0.00012313,30]
[422123091,1778590166000,-208.07256359,9.154e-05,2]
[422123092,1778590166000,-4119.42711641,9.154e-05,2]
[422123095,1778590233000,-393.653476,9.154e-05,2]
[422123126,1778590234000,-762.51,0.0001274,2]
[422123123,1778590234000,-150.0,0.00012358,2]
[422123127,1778590234000,-628.43,0.00012741,2]
[422123124,1778590234000,-2000.0,0.00012698,2]
[422123129,1778590234000,-1852.42,0.00012764,2]
[422123130,1778590234000,-500.0,0.00012769,2]
[422123131,1778590234000,-150.0,0.0001278,2]
[422123135,1778590234000,-8261.07,0.00013145,2]
[422123139,1778590234000,-150.0,0.00013174,2]
[422123136,1778590234000,-153.42,0.00013151,2]
[422123132,1778590234000,-7378.3,0.00012781,2]
[422123133,1778590234000,-1873.19,0.00013039,2]
[422123138,1778590234000,-544.25,0.00013171,2]
[422123134,1778590234000,-762.51,0.00013059,2]
[422123140,1778590234000,-172.95,0.00013179,2]
[422123141,1778590234000,-1000.0,0.00013186,2]
[422123142,1778590234000,-1680.0,0.00013199,2]
[422123153,1778590234000,-150.0,0.00013488,2]
[422123146,1778590234000,-150.0,0.00013488,2]
[422123145,1778590234000,-150.0,0.00013488,2]
[422123143,1778590234000,-762.51,0.00013377,2]
[422123144,1778590234000,-150.0,0.00013488,2]
[422123147,1778590234000,-150.0,0.00013488,2]
[422123125,1778590234000,-153.42,0.00012707,2]
[422123137,1778590234000,-222.92,0.00013171,2]
[422123122,1778590234000,-150.0,0.00012358,2]
[422123148,1778590234000,-150.0,0.00013488,2]
[422123120,1778590234000,-200.0,0.00012355,2]
[422123097,1778590234000,-264.66662806,9.154e-05,2]
[422123098,1778590234000,-153.42,9.154e-05,2]
[422123099,1778590234000,-150.0,9.245e-05,2]
[422123100,1778590234000,-56.78030337,9.336e-05,2]
[422123096,1778590234000,-315.50766773,9.154e-05,2]
[422123101,1778590234000,-93.21969663,9.336e-05,2]
[422123102,1778590234000,-150.0,9.428e-05,2]
[422123105,1778590234000,-150.0,9.887e-05,2]
[422123104,1778590234000,-153.42,9.598e-05,2]
[422123103,1778590234000,-274.0,9.519e-05,2]
[422123106,1778590234000,-153.42,0.00010042,2]
[422123121,1778590234000,-150.0,0.00012358,2]
[422123107,1778590234000,-159.93,0.00010411,2]
[422123111,1778590234000,-153.42,0.00011375,2]
[422123110,1778590234000,-208.07256359,0.00011275,2]
[422123109,1778590234000,-153.42,0.00010931,2]
[422123112,1778590234000,-153.42,0.00011819,2]
[422123116,1778590234000,-53742.34745716,0.00012,2]
[422123117,1778590234000,-153.42,0.00012263,2]
[422123114,1778590234000,-252.0,0.00011999,2]
[422123115,1778590234000,-300.0,0.00011999,2]
[422123113,1778590234000,-1200.0,0.00011999,2]
[422123118,1778590234000,-150.0,0.00012336,2]
[422123119,1778590234000,-500.0,0.00012336,2]
[422123108,1778590234000,-153.42,0.00010487,2]
[422123149,1778590234000,-150.0,0.00013488,2]
[422123128,1778590234000,-19738.44,0.00012764,2]
[422123150,1778590234000,-151.55291946,0.00013488,2]
[422123181,1778590234000,-150.0,0.0001376,2]
[422123182,1778590234000,-150.0,0.00013787,2]
[422123183,1778590234000,-150.0,0.00013806,2]
[422123184,1778590234000,-150.0,0.00013821,2]
[422123186,1778590234000,-300.655616,0.00013843,2]
[422123185,1778590234000,-166.66,0.00013836,2]
[422123187,1778590234000,-246.704061,0.00013843,2]
[422123188,1778590234000,-150.0,0.00013847,2]
[422123189,1778590234000,-150.0,0.00013851,2]
[422123191,1778590234000,-255.0,0.0001388,2]
[422123193,1778590234000,-222.92,0.00013902,2]
[422123192,1778590234000,-150.0,0.00013896,2]
[422123190,1778590234000,-500.0,0.00013869,2]
[422123194,1778590234000,-150.0,0.00013904,2]
[422123200,1778590234000,-150.0,0.00013987,2]
[422123196,1778590234000,-150.0,0.00013916,2]
[422123198,1778590234000,-150.0,0.00013967,2]
[422123195,1778590234000,-150.0,0.00013907,2]
[422123197,1778590234000,-150.0,0.00013942,2]
[422123199,1778590234000,-166.66,0.00013973,2]
[422123201,1778590234000,-150.0,0.00013987,2]
[422123202,1778590234000,-150.0,0.00013987,2]
[422123203,1778590234000,-150.0,0.00013987,2]
[422123205,1778590234000,-250.0,0.00014,2]
[422123151,1778590234000,-174.01032977,0.00013488,2]
[422123180,1778590234000,-5882.08,0.00013756,2]
[422123179,1778590234000,-150.0,0.00013737,2]
[422123204,1778590234000,-150.0,0.00013987,2]
[422123178,1778590234000,-150.0,0.00013737,2]
[422123152,1778590234000,-150.0,0.00013488,2]
[422123177,1778590234000,-150.0,0.00013737,2]
[422123155,1778590234000,-150.0,0.00013533,2]
[422123157,1778590234000,-150.0,0.00013571,2]
[422123156,1778590234000,-150.0,0.00013548,2]
[422123159,1778590234000,-153.42,0.00013595,2]
[422123158,1778590234000,-150.0,0.00013578,2]
[422123160,1778590234000,-500.0,0.00013595,2]
[422123164,1778590234000,-150.0,0.00013624,2]
[422123161,1778590234000,-150.0,0.00013608,2]
[422123163,1778590234000,-152.0,0.00013623,2]
[422123162,1778590234000,-152.0,0.00013623,2]
[422123154,1778590234000,-150.0,0.00013488,2]
[422123167,1778590234000,-150.0,0.00013669,2]
[422123166,1778590234000,-150.0,0.00013668,2]
[422123169,1778590234000,-2500.0,0.00013699,2]
[422123175,1778590234000,-150.0,0.00013715,2]
[422123168,1778590234000,-762.51,0.00013696,2]
[422123173,1778590234000,-152.0,0.00013699,2]
[422123171,1778590234000,-200.0,0.00013699,2]
[422123174,1778590234000,-150.0,0.00013702,2]
[422123172,1778590234000,-152.0,0.00013699,2]
[422123206,1778590234000,-762.51,0.00014014,2]
[422123170,1778590234000,-166.66,0.00013699,2]
[422123176,1778590234000,-150.0,0.00013727,2]
[422123165,1778590234000,-150.0,0.00013654,2]
[422123246,1778590235000,-500.0,0.00014126,2]
[422123243,1778590235000,-500.0,0.00014126,2]
[422123241,1778590235000,-500.0,0.00014126,2]
[422123238,1778590235000,-961.0,0.00014126,5]
[422123236,1778590235000,-961.0,0.00014126,5]
[422123237,1778590235000,-961.0,0.00014126,5]
[422123235,1778590235000,-961.0,0.00014126,5]
[422123233,1778590235000,-961.0,0.00014126,5]
[422123239,1778590235000,-500.0,0.00014126,2]
[422123245,1778590235000,-500.0,0.00014126,2]
[422123247,1778590235000,-500.0,0.00014126,2]
[422123244,1778590235000,-961.0,0.00014126,5]
[422123252,1778590235000,-500.0,0.00014126,2]
[422123251,1778590235000,-500.0,0.00014126,2]
[422123248,1778590235000,-961.0,0.00014126,5]
[422123249,1778590235000,-500.0,0.00014126,2]
[422123250,1778590235000,-500.0,0.00014126,2]
[422123253,1778590235000,-500.0,0.00014126,2]
[422123258,1778590235000,-161.44333753,0.00014126,5]
[422123265,1778590235000,-500.0,0.00014135,2]
[422123254,1778590235000,-530.77702258,0.00014126,2]
[422123234,1778590235000,-961.0,0.00014126,5]
[422123260,1778590235000,-961.0,0.00014126,5]
[422123242,1778590235000,-500.0,0.00014126,2]
[422123231,1778590235000,-503.52293091,0.00014126,5]
[422123221,1778590235000,-961.0,0.00014126,5]
[422123229,1778590235000,-961.0,0.00014126,5]
[422123262,1778590235000,-961.0,0.00014126,5]
[422123214,1778590235000,-150.0,0.00014123,2]
[422123209,1778590235000,-150.0,0.00014033,2]
[422123213,1778590235000,-166.66,0.0001411,2]
[422123210,1778590235000,-150.0,0.0001407,2]
[422123212,1778590235000,-150.0,0.00014087,2]
[422123207,1778590235000,-250.07,0.00014026,2]
[422123208,1778590235000,-150.0,0.00014027,2]
[422123211,1778590235000,-150.0,0.00014078,2]
[422123215,1778590235000,-961.0,0.00014126,5]
[422123217,1778590235000,-961.0,0.00014126,5]
[422123216,1778590235000,-961.0,0.00014126,5]
[422123220,1778590235000,-150.0,0.00014126,5]
[422123226,1778590235000,-961.0,0.00014126,5]
[422123223,1778590235000,-200.0,0.00014126,5]
[422123224,1778590235000,-961.0,0.00014126,5]
[422123222,1778590235000,-150.0,0.00014126,5]
[422123225,1778590235000,-500.0,0.00014126,5]
[422123218,1778590235000,-150.0,0.00014126,5]
[422123227,1778590235000,-150.0,0.00014126,5]
[422123228,1778590235000,-500.0,0.00014126,5]
[422123230,1778590235000,-200.0,0.00014126,5]
[422123240,1778590235000,-961.0,0.00014126,5]
[422123232,1778590235000,-961.0,0.00014126,5]
[422123261,1778590235000,-961.0,0.00014126,5]
[422123219,1778590235000,-961.0,0.00014126,5]
[422123264,1778590235000,-150.0,0.0001413,2]
[422123287,1778590235000,-150.0,0.00014327,2]
[422123288,1778590235000,-628.43,0.00014333,2]
[422123292,1778590235000,-150.0,0.00014351,2]
[422123293,1778590235000,-8849.43255604,0.00014375,2]
[422123294,1778590235000,-166.66,0.00014384,2]
[422123297,1778590235000,-150.0,0.00014396,2]
[422123295,1778590235000,-150.0,0.00014387,2]
[422123296,1778590235000,-13011.01315368,0.00014393,2]
[422123301,1778590235000,-22039.5315713,0.00014409,2]
[422123298,1778590235000,-5300.0,0.000144,5]
[422123300,1778590235000,-787.53221972,0.00014408,2]
[422123302,1778590235000,-3051.0816535,0.00014409,2]
[422123303,1778590235000,-48552.94140795,0.00014409,2]
[422123304,1778590235000,-12762.49056873,0.00014409,2]
[422123305,1778590235000,-2000.0,0.00014409,2]
[422123307,1778590235000,-354.00232647,0.00014409,2]
[422123306,1778590235000,-471.84604647,0.00014409,2]
[422123312,1778590235000,-595.15155,0.00014409,2]
[422123308,1778590235000,-272.12352312,0.00014409,2]
[422123310,1778590235000,-343.92,0.00014409,2]
[422123309,1778590235000,-6544.65756157,0.00014409,2]
[422123311,1778590235000,-291.0,0.00014409,2]
[422123256,1778590235000,-150.0,0.00014126,5]
[422123286,1778590235000,-150.0,0.0001432,2]
[422123290,1778590235000,-156.07,0.00014338,2]
[422123299,1778590235000,-150.0,0.00014404,2]
[422123285,1778590235000,-13011.01315368,0.00014309,2]
[422123289,1778590235000,-160.77743921,0.00014337,2]
[422123257,1778590235000,-150.0,0.00014126,5]
[422123255,1778590235000,-961.0,0.00014126,5]
[422123259,1778590235000,-961.0,0.00014126,5]
[422123263,1778590235000,-973.23043323,0.00014126,5]
[422123266,1778590235000,-513.31108128,0.00014135,2]
[422123267,1778590235000,-225.04375716,0.00014143,2]
[422123268,1778590235000,-77551.2668327,0.00014146,2]
[422123271,1778590235000,-150.0,0.00014169,2]
[422123276,1778590235000,-150.0,0.00014237,2]
[422123270,1778590235000,-150.0,0.00014154,2]
[422123275,1778590235000,-150.0,0.00014237,2]
[422123269,1778590235000,-150.0,0.00014147,2]
[422123272,1778590235000,-150.0,0.00014207,2]
[422123279,1778590235000,-150.0,0.0001426,2]
[422123291,1778590235000,-150.0,0.00014344,2]
[422123284,1778590235000,-8849.43255613,0.00014309,2]
[422123282,1778590235000,-2600.0,0.000143,5]
[422123283,1778590235000,-150.0,0.00014305,2]
[422123280,1778590235000,-150.0,0.00014267,2]
[422123278,1778590235000,-166.66,0.00014247,2]
[422123277,1778590235000,-150.0,0.00014237,2]
[422123274,1778590235000,-150.0,0.00014237,2]
[422123273,1778590235000,-150.0,0.00014214,2]
[422123281,1778590235000,-2000.0,0.00014285,2]
[422123325,1778590237000,-500.0,0.00014409,2]
[422123326,1778590237000,-500.0,0.00014409,2]
[422123330,1778590237000,-500.0,0.00014409,2]
[422123328,1778590237000,-500.0,0.00014409,2]
[422123331,1778590237000,-500.0,0.00014409,2]
[422123339,1778590237000,-500.0,0.00014409,2]
[422123336,1778590237000,-500.0,0.00014409,2]
[422123338,1778590237000,-500.0,0.00014409,2]
[422123335,1778590237000,-250.82951833,0.00014409,2]
[422123340,1778590237000,-500.0,0.00014409,2]
[422123327,1778590237000,-500.0,0.00014409,2]
[422123334,1778590237000,-500.0,0.00014409,2]
[422123329,1778590237000,-500.0,0.00014409,2]
[422123320,1778590237000,-612.26877207,0.00014409,2]
[422123332,1778590237000,-500.0,0.00014409,2]
[422123322,1778590237000,-500.0,0.00014409,2]
[422123323,1778590237000,-416.70082419,0.00014409,2]
[422123333,1778590237000,-500.0,0.00014409,2]
[422123321,1778590237000,-349.22785909,0.00014409,2]
[422123318,1778590237000,-500.0,0.00014409,2]
[422123319,1778590237000,-232.96010364,0.00014409,2]
[422123317,1778590237000,-500.0,0.00014409,2]
[422123316,1778590237000,-500.0,0.00014409,2]
[422123315,1778590237000,-500.35069752,0.00014409,2]
[422123314,1778590237000,-50747.2183919,0.00014409,2]
[422123313,1778590237000,-21302.33748159,0.00014409,2]
[422123343,1778590237000,-500.0,0.00014409,2]
[422123324,1778590237000,-352.45625214,0.00014409,2]
[422123345,1778590237000,-500.0,0.00014409,2]
[422123337,1778590237000,-500.0,0.00014409,2]
[422123342,1778590237000,-500.0,0.00014409,2]
[422123341,1778590237000,-500.0,0.00014409,2]
[422123372,1778590237000,-500.0,0.00014409,2]
[422123370,1778590237000,-500.0,0.00014409,2]
[422123362,1778590237000,-500.0,0.00014409,2]
[422123368,1778590237000,-500.0,0.00014409,2]
[422123363,1778590237000,-500.0,0.00014409,2]
[422123366,1778590237000,-500.0,0.00014409,2]
[422123369,1778590237000,-500.0,0.00014409,2]
[422123364,1778590237000,-509.40541095,0.00014409,2]
[422123365,1778590237000,-522.88576035,0.00014409,2]
[422123367,1778590237000,-500.0,0.00014409,2]
[422123360,1778590237000,-500.0,0.00014409,2]
[422123361,1778590237000,-500.0,0.00014409,2]
[422123359,1778590237000,-500.0,0.00014409,2]
[422123371,1778590237000,-500.0,0.00014409,2]
[422123357,1778590237000,-500.0,0.00014409,2]
[422123344,1778590237000,-500.0,0.00014409,2]
[422123346,1778590237000,-500.0,0.00014409,2]
[422123348,1778590237000,-500.0,0.00014409,2]
[422123347,1778590237000,-500.0,0.00014409,2]
[422123358,1778590237000,-316.4690635,0.00014409,2]
[422123351,1778590237000,-500.0,0.00014409,2]
[422123349,1778590237000,-500.0,0.00014409,2]
[422123352,1778590237000,-500.0,0.00014409,2]
[422123355,1778590237000,-500.0,0.00014409,2]
[422123356,1778590237000,-500.0,0.00014409,2]
[422123353,1778590237000,-211.55744923,0.00014409,2]
[422123354,1778590237000,-288.44255077,0.00014409,2]
[422123350,1778590237000,-500.0,0.00014409,2]
[422123425,1778590238000,-8849.43255604,0.00014572,2]
[422123424,1778590238000,-150.0,0.0001457,2]
[422123413,1778590238000,-4647.23578186,0.000145,5]
[422123414,1778590238000,-3352.76421814,0.000145,5]
[422123405,1778590238000,-1877.67502266,0.00014479,2]
[422123409,1778590238000,-150.0,0.00014487,2]
[422123411,1778590238000,-150.0,0.00014487,2]
[422123410,1778590238000,-150.0,0.00014487,2]
[422123404,1778590238000,-500.0,0.00014473,2]
[422123408,1778590238000,-150.0,0.00014487,2]
[422123412,1778590238000,-150.0,0.00014487,2]
[422123418,1778590238000,-500.0,0.00014521,2]
[422123420,1778590238000,-500.0,0.00014538,2]